bitfinex/quotes_BTCUSD_20240823
["timestamp","ask_amount","ask_price","bid_price","bid_amount"]
[1724445466694,0.16400298,63644.0,63642.0,0.157128]
[1724445466898,0.16400298,63644.0,63634.0,0.171626]
[1724445466899,0.0928,63642.0,63639.0,0.314272]
[1724445467103,0.0928,63642.0,63640.0,0.157133]
[1724445467519,0.0928,63642.0,63641.0,0.007]
[1724445467520,0.0938,63642.0,63641.0,0.007]
[1724445467710,0.0938,63642.0,63634.0,0.171626]
[1724445467711,0.25680298,63642.0,63634.0,0.171626]
[1724445467920,0.1,63643.0,63634.0,0.000826]
[1724445467921,0.0928,63637.0,63634.0,0.000826]
[1724445468096,0.564238,63635.0,63634.0,0.000826]
[1724445468315,1.04253298,63635.0,63634.0,0.000826]
[1724445468656,1.2125389,63635.0,63634.0,0.000826]
[1724445469095,0.8982469,63635.0,63634.0,0.000826]
[1724445469278,0.82824098,63635.0,63634.0,0.000826]
[1724445469933,0.5607012,63635.0,63634.0,0.000826]
[1724445470309,0.52207404,63635.0,63634.0,0.000826]
[1724445470733,0.52307404,63635.0,63634.0,0.008826]
[1724445471213,0.81227236,63635.0,63634.0,0.008826]
[1724445471427,0.52307404,63635.0,63634.0,0.008826]
[1724445471633,0.74858097,63635.0,63634.0,0.008826]
[1724445472037,1.22028369,63635.0,63634.0,0.008826]
[1724445472164,1.2202798,63635.0,63634.0,0.008826]
[1724445472368,1.12667774,63635.0,63634.0,0.008826]
[1724445472567,1.24335428,63635.0,63634.0,0.008826]
[1724445472791,1.12667774,63635.0,63634.0,0.008826]
[1724445473998,1.15132289,63635.0,63634.0,0.008826]
[1724445476186,1.46599428,63635.0,63634.0,0.008826]
[1724445476317,1.85038628,63635.0,63634.0,0.008826]
[1724445476928,1.85138628,63635.0,63634.0,0.008826]
[1724445477382,1.53709428,63635.0,63634.0,0.008826]
[1724445478198,1.85138628,63635.0,63634.0,0.008826]
[1724445478331,1.53709428,63635.0,63634.0,0.008826]
[1724445478732,1.70107306,63635.0,63634.0,0.008826]
[1724445478935,2.01536506,63635.0,63634.0,0.008826]
[1724445479132,1.70107306,63635.0,63634.0,0.008826]
[1724445479339,2.01536506,63635.0,63634.0,0.008826]
[1724445479548,1.81797286,63635.0,63634.0,0.008826]
[1724445479754,2.13226486,63635.0,63634.0,0.008826]
[1724445479961,1.81797286,63635.0,63634.0,0.008826]
[1724445480163,2.13226486,63635.0,63634.0,0.008826]
[1724445480363,1.81797286,63635.0,63634.0,0.008826]
[1724445480562,1.69930094,63635.0,63634.0,0.008826]
[1724445480765,1.53532216,63635.0,63634.0,0.008826]
[1724445480971,1.14893016,63635.0,63634.0,0.008826]
[1724445481339,0.95158635,63635.0,63634.0,0.008826]
[1724445481542,1.26587835,63635.0,63634.0,0.008826]
[1724445481750,1.24248603,63635.0,63634.0,0.008826]
[1724445482157,0.58469216,63635.0,63634.0,0.008826]
[1724445482385,0.58469216,63635.0,63634.0,0.165974]
[1724445482501,0.29777319,63635.0,63634.0,0.165974]
[1724445483121,0.34455855,63635.0,63634.0,0.165974]
[1724445483752,0.34455855,63635.0,63634.0,0.008826]
[1724445484175,0.34456003,63635.0,63634.0,0.165974]
[1724445484938,0.34456003,63635.0,63634.0,0.008826]
[1724445485114,0.34456003,63635.0,63634.0,0.165974]
[1724445485323,0.34456003,63635.0,63634.0,0.008826]
[1724445485550,0.34456003,63635.0,63634.0,0.165974]
[1724445485902,0.34456003,63635.0,63634.0,0.008826]
[1724445486889,0.34456566,63635.0,63634.0,0.008826]
[1724445487934,0.18056268,63635.0,63634.0,0.560471]
[1724445488135,0.18056268,63635.0,63634.0,0.945568]
[1724445488136,0.02564515,63635.0,63634.0,0.945568]
[1724445488340,0.001,63635.0,63634.0,1.259865]
[1724445489375,0.001,63635.0,63634.0,1.574162]
[1724445490163,0.00090861,63643.0,63642.0,0.936642]
[1724445490363,0.00090861,63643.0,63642.0,1.250899]
[1724445490568,0.00090861,63643.0,63642.0,1.565156]
[1724445491420,0.00090861,63643.0,63642.0,1.566156]
[1724445491752,0.00190861,63643.0,63642.0,1.574156]
[1724445491973,0.00190861,63643.0,63642.0,1.566156]
[1724445492174,0.00190861,63643.0,63642.0,1.73015898]
[1724445492401,0.00190861,63643.0,63642.0,1.72915898]
[1724445493159,0.00190861,63643.0,63642.0,1.565156]
[1724445493386,0.00190861,63643.0,63642.0,1.576156]
[1724445493795,0.00090861,63643.0,63642.0,1.565156]
[1724445494223,0.00090861,63643.0,63642.0,1.566156]
[1724445494420,0.02554168,63643.0,63642.0,1.565156]
[1724445494701,0.02554168,63643.0,63642.0,1.579156]
[1724445496511,0.00090861,63643.0,63642.0,1.580156]
[1724445496654,0.00090861,63643.0,63642.0,1.579156]
[1724445496840,0.00090861,63643.0,63642.0,1.580156]
[1724445497041,0.00090861,63643.0,63642.0,1.579156]
[1724445497704,0.00090861,63643.0,63642.0,1.580156]
[1724445498001,0.00090861,63643.0,63642.0,1.579156]
[1724445498138,0.00090861,63643.0,63642.0,1.580156]
[1724445499033,0.00090861,63643.0,63642.0,1.579156]
[1724445499245,0.00090861,63643.0,63642.0,1.582156]
[1724445499548,0.00090861,63643.0,63642.0,1.580156]
[1724445500065,0.00090861,63643.0,63642.0,1.579156]
[1724445500699,0.00090861,63643.0,63642.0,2.05841598]
[1724445500903,0.00090861,63643.0,63642.0,2.06041598]
[1724445501495,0.02463302,63664.0,63663.0,1.247939]
[1724445501911,0.00090861,63677.0,63663.0,1.247939]
[1724445501912,0.00090861,63677.0,63676.0,0.785225]
[1724445502123,0.00090861,63677.0,63676.0,1.247715]
[1724445502770,0.00090861,63677.0,63676.0,1.561805]
[1724445503286,0.00090861,63677.0,63676.0,1.7676121]
[1724445503511,0.00090861,63677.0,63676.0,2.0847021]
[1724445503712,0.00090861,63677.0,63676.0,2.08961877]
[1724445503916,0.00090861,63677.0,63676.0,1.72580798]
[1724445504117,0.00090861,63677.0,63676.0,0.537235]
[1724445504325,0.00090861,63677.0,63676.0,0.851325]
[1724445504539,0.00090861,63677.0,63676.0,0.485135]
[1724445504715,0.00090861,63677.0,63676.0,0.785225]
[1724445504917,0.00090861,63677.0,63676.0,0.471135]
[1724445505154,0.00090861,63677.0,63676.0,0.799225]
[1724445505575,0.00090861,63677.0,63676.0,0.471135]
[1724445506938,0.00090861,63677.0,63676.0,0.482135]
[1724445507203,0.00090861,63677.0,63676.0,0.471135]
[1724445507570,0.00090861,63677.0,63676.0,0.785225]
[1724445507772,0.00090861,63677.0,63676.0,0.471135]
[1724445507968,0.00090861,63677.0,63676.0,0.482135]
[1724445508379,0.0255318,63677.0,63676.0,0.796225]
[1724445508576,0.0255318,63677.0,63676.0,0.482135]
[1724445508988,0.0255318,63677.0,63676.0,0.168045]
[1724445509205,0.0255318,63677.0,63676.0,0.011]
[1724445509638,0.0255318,63677.0,63676.0,0.168045]
[1724445509825,0.0255318,63677.0,63676.0,0.011]
[1724445510372,0.0255318,63677.0,63676.0,0.168045]
[1724445510780,0.0255318,63677.0,63676.0,0.011]
[1724445511209,0.1086318,63677.0,63676.0,0.011]
[1724445511423,0.2086318,63677.0,63676.0,0.168045]
[1724445513547,0.2086318,63677.0,63676.0,0.796225]
[1724445513903,0.2086318,63677.0,63676.0,0.482135]
[1724445514403,0.2086318,63677.0,63676.0,0.168045]
[1724445514608,0.2086318,63677.0,63676.0,0.011]
[1724445515490,0.2086318,63677.0,63676.0,0.168045]
[1724445517152,0.2086318,63677.0,63676.0,0.011]
[1724445517553,0.2086318,63677.0,63676.0,0.168045]
[1724445518279,0.2086318,63677.0,63676.0,0.011]
[1724445518502,0.2086318,63677.0,63676.0,0.168045]
[1724445518701,0.2086318,63677.0,63676.0,0.011]
[1724445519268,0.1255318,63677.0,63676.0,0.168045]
[1724445519468,0.0255318,63677.0,63676.0,0.168045]
[1724445519671,0.0255318,63677.0,63676.0,0.482135]
[1724445519672,0.1255318,63677.0,63676.0,0.482135]
[1724445520271,0.1255318,63677.0,63676.0,0.011]
[1724445520272,0.2825738,63677.0,63676.0,0.011]
[1724445520474,0.3581738,63677.0,63676.0,0.011]
[1724445520674,0.2011318,63677.0,63676.0,0.011]
[1724445521299,0.3581738,63677.0,63676.0,0.011]
[1724445521502,0.2011318,63677.0,63671.0,0.31411]
[1724445521683,0.1,63676.0,63675.0,0.157047]
[1724445522384,0.0756,63668.0,63666.0,0.157068]
[1724445522732,0.265003,63676.0,63663.0,0.0797]
[1724445522733,0.16400298,63675.0,63663.0,0.0797]
[1724445522965,0.16400298,63675.0,63663.0,0.08284116]
[1724445523142,0.1,63674.0,63670.0,0.314119]
[1724445523294,0.02462705,63673.0,63672.0,0.157053]
[1724445523500,0.02462705,63673.0,63672.0,0.471162]
[1724445523904,0.02462705,63673.0,63672.0,1.24358]
[1724445524690,0.02462705,63673.0,63672.0,1.16388]
[1724445525131,0.02462705,63673.0,63672.0,1.16488]
[1724445525461,0.02462705,63673.0,63672.0,0.849771]
[1724445525696,0.02462705,63673.0,63672.0,0.856771]
[1724445526019,0.02462705,63673.0,63672.0,0.849771]
[1724445527488,0.02462705,63673.0,63672.0,0.858771]
[1724445529888,0.03277222,63673.0,63672.0,0.858771]
[1724445531211,0.03277222,63673.0,63672.0,0.544662]
[1724445531618,0.03277222,63673.0,63672.0,0.858771]
[1724445534293,0.02462705,63673.0,63672.0,0.858771]
[1724445535134,0.02462705,63673.0,63672.0,0.544662]
[1724445535581,0.02462705,63673.0,63672.0,0.858771]
[1724445535796,0.02553456,63673.0,63672.0,0.858771]
[1724445536823,0.02553456,63673.0,63672.0,0.544662]
[1724445537374,0.02553456,63673.0,63672.0,0.858771]
[1724445538578,0.02553456,63673.0,63672.0,0.544662]
[1724445538809,0.02553456,63673.0,63672.0,0.858771]
[1724445539872,0.02553456,63673.0,63672.0,1.17288]
[1724445540096,0.02553456,63673.0,63672.0,0.858771]
[1724445540310,0.02553456,63673.0,63672.0,1.17288]
[1724445541135,0.02553456,63673.0,63672.0,0.858771]
[1724445541767,0.02553456,63673.0,63672.0,1.17288]
[1724445542325,0.02553456,63673.0,63672.0,1.24928]
[1724445544401,0.02553456,63673.0,63672.0,0.858771]
[1724445546103,0.02553456,63673.0,63672.0,1.17288]
[1724445547131,0.02553456,63673.0,63672.0,0.85860472]
[1724445547437,0.02553456,63673.0,63672.0,1.17271372]
[1724445548905,0.02553456,63673.0,63672.0,0.85860472]
[1724445549494,0.02553456,63673.0,63672.0,1.17271372]
[1724445549699,0.02553456,63673.0,63672.0,0.85860472]
[1724445550053,0.02553456,63673.0,63672.0,1.17271372]
[1724445550256,0.02553456,63673.0,63672.0,0.85860472]
[1724445550904,0.02553456,63673.0,63672.0,1.17271372]
[1724445551109,0.02553456,63673.0,63672.0,0.85860472]
[1724445554477,0.40104373,63673.0,63672.0,0.009]
[1724445554668,0.72949265,63673.0,63672.0,0.009]
[1724445554866,1.01004875,63673.0,63672.0,0.009]
[1724445555065,1.02217845,63673.0,63672.0,0.009]
[1724445555605,1.33628245,63673.0,63672.0,0.009]
[1724445555743,1.33628233,63673.0,63672.0,0.009]
[1724445556094,0.157055,63672.0,63667.0,0.157065]
[1724445556295,0.04703793,63668.0,63667.0,0.157067]
[1724445556492,0.21104091,63668.0,63667.0,0.157067]
[1724445557130,0.21104091,63668.0,63667.0,0.471201]
[1724445557502,0.16400298,63668.0,63667.0,0.477201]
[1724445558289,0.04703793,63669.0,63668.0,0.471193]
[1724445558628,0.04703793,63669.0,63668.0,0.785322]
[1724445559388,0.04703793,63671.0,63670.0,0.471178]
[1724445559611,0.04703173,63672.0,63671.0,0.628228]
[1724445559810,0.17256629,63673.0,63672.0,0.471163]
[1724445560090,0.02553456,63673.0,63672.0,0.861072]
[1724445560301,0.02553456,63673.0,63672.0,1.175181]
[1724445560504,0.02553456,63673.0,63672.0,1.54989]
[1724445563352,0.02553456,63673.0,63672.0,1.55889]
[1724445563565,0.02553456,63673.0,63672.0,2.04000198]
[1724445563765,0.02553456,63673.0,63672.0,2.06276897]
[1724445564040,0.02553456,63673.0,63672.0,2.05376897]
[1724445564246,0.02553456,63673.0,63672.0,2.05260122]
[1724445564397,0.02553456,63673.0,63672.0,2.09454474]
[1724445564596,0.00090861,63677.0,63672.0,2.09454474]
[1724445564597,0.00090861,63677.0,63676.0,1.878795]
[1724445564802,0.00090861,63677.0,63676.0,2.20504309]
[1724445565003,0.00090861,63677.0,63676.0,2.12333625]
[1724445565256,0.05,63680.0,63679.0,1.880712]
[1724445565455,0.05,63680.0,63679.0,2.36147841]
[1724445565686,0.03125,63680.0,63679.0,2.45550028]
[1724445565910,0.02461859,63684.0,63683.0,1.880602]
[1724445566035,0.00090861,63686.0,63685.0,0.474067]
[1724445566238,0.00090861,63686.0,63685.0,2.31671417]
[1724445566441,0.00090861,63686.0,63685.0,2.74162703]
[1724445566689,0.00090861,63686.0,63685.0,2.70072103]
[1724445566901,0.02461535,63693.0,63692.0,1.83651319]
[1724445567078,0.02461535,63693.0,63692.0,2.31452717]
[1724445567273,0.02461535,63693.0,63692.0,2.33952717]
[1724445567473,0.009086,63697.0,63696.0,1.566259]
[1724445567677,0.009086,63697.0,63696.0,2.06725298]
[1724445568251,0.000826,63707.0,63699.0,1.415892]
[1724445568457,0.000826,63707.0,63699.0,2.03917098]
[1724445568658,0.02460993,63705.0,63699.0,2.03917098]
[1724445569071,0.02460993,63705.0,63699.0,2.04017098]
[1724445569270,0.02460993,63705.0,63699.0,2.04217098]
[1724445570121,0.02460993,63705.0,63699.0,2.05617098]
[1724445570525,0.02460993,63705.0,63699.0,1.73919498]
[1724445570775,0.02460993,63705.0,63699.0,1.74019498]
[1724445570776,0.15786751,63700.0,63699.0,1.74019498]
[1724445570979,0.15786751,63700.0,63699.0,1.72619498]
[1724445571177,0.15786751,63700.0,63699.0,1.73919498]
[1724445571416,0.15786751,63700.0,63699.0,2.05417098]
[1724445571626,0.15766729,63700.0,63699.0,2.05417098]
[1724445571796,0.15766729,63700.0,63699.0,2.05617098]
[1724445573550,0.15766729,63700.0,63699.0,2.04217098]
[1724445574132,0.15766729,63700.0,63699.0,2.05617098]
[1724445574486,0.15766729,63700.0,63699.0,2.03917098]
[1724445574885,0.15766729,63700.0,63699.0,2.05317098]
[1724445575113,0.15766729,63700.0,63699.0,2.03917098]
[1724445575456,0.15766729,63700.0,63699.0,2.05417098]
[1724445575759,0.15766729,63700.0,63699.0,2.04017098]
[1724445576175,0.15766729,63700.0,63699.0,2.05417098]
[1724445576556,0.15766729,63700.0,63699.0,2.05617098]
[1724445576939,0.15766729,63700.0,63699.0,2.05317098]
[1724445577145,0.15766729,63700.0,63699.0,2.05417098]
[1724445577366,0.15766729,63700.0,63699.0,2.04017098]
[1724445577576,0.15766729,63700.0,63699.0,1.72519498]
[1724445577725,0.15766729,63700.0,63699.0,1.479392]
[1724445577928,0.15766729,63700.0,63699.0,2.05417098]
[1724445578150,0.15766729,63700.0,63699.0,2.05617098]
[1724445578547,0.15766729,63700.0,63699.0,2.04217098]
[1724445579023,0.15766729,63700.0,63699.0,2.05617098]
[1724445579222,0.15766729,63700.0,63699.0,2.04217098]
[1724445580582,0.15766729,63700.0,63699.0,2.05617098]
[1724445581180,0.15766729,63700.0,63699.0,2.04217098]
[1724445581380,0.15766729,63700.0,63699.0,2.05617098]
[1724445581932,0.15766729,63700.0,63699.0,2.05317098]
[1724445582132,0.15766729,63700.0,63699.0,2.05417098]
[1724445582380,0.15766729,63700.0,63699.0,1.73919498]
[1724445582963,0.15766729,63700.0,63699.0,1.74219498]
[1724445583685,0.15766729,63700.0,63699.0,1.72901998]
[1724445583967,0.15766729,63700.0,63699.0,1.74301998]
[1724445584819,0.15766729,63700.0,63699.0,2.05699598]
[1724445585751,0.15715608,63700.0,63699.0,2.05699598]
[1724445586587,0.15715608,63700.0,63699.0,2.04299598]
[1724445587106,0.15715608,63700.0,63699.0,2.05699598]
[1724445589425,0.15715608,63700.0,63699.0,2.05399598]
[1724445589603,0.15715608,63700.0,63699.0,2.05499598]
[1724445589810,0.15715608,63700.0,63699.0,2.05699598]
[1724445592137,0.15715608,63700.0,63699.0,1.74301998]
[1724445593515,0.15715608,63700.0,63699.0,2.05699598]
[1724445594672,0.15715608,63700.0,63699.0,1.74301998]
[1724445595266,0.15715608,63700.0,63699.0,2.05699598]
[1724445595468,0.15715608,63700.0,63699.0,1.74301998]
[1724445595871,0.15715608,63700.0,63699.0,2.05699598]
[1724445596486,0.15715608,63700.0,63699.0,2.05899598]
[1724445596652,0.15715608,63700.0,63699.0,2.08199598]
[1724445598511,0.15715608,63700.0,63699.0,2.11594938]
[1724445599220,0.15715608,63700.0,63699.0,2.12418788]
[1724445600499,0.15715608,63700.0,63699.0,2.43816388]
[1724445600989,0.15715608,63700.0,63699.0,3.93816388]
[1724445602002,0.15715608,63700.0,63699.0,2.43816388]
[1724445602628,0.15715608,63700.0,63699.0,2.12418788]
[1724445604695,0.15715608,63700.0,63699.0,2.11594938]
[1724445606321,0.15715608,63700.0,63699.0,2.42992538]
[1724445606520,0.15715608,63700.0,63699.0,2.11594938]
[1724445607616,0.15715608,63700.0,63699.0,2.1862717]
[1724445608594,0.15715608,63700.0,63699.0,2.22706381]
[1724445609467,0.15715608,63700.0,63699.0,2.13330072]
[1724445610797,0.15715608,63700.0,63699.0,2.13330668]
[1724445613404,0.15715608,63700.0,63699.0,2.59728268]
[1724445613609,0.15715608,63700.0,63699.0,2.28330668]
[1724445614220,0.15715608,63700.0,63699.0,2.59728268]
[1724445614637,0.15715608,63700.0,63699.0,2.28330668]
[1724445615042,0.15715608,63700.0,63699.0,2.59728268]
[1724445616041,0.15702421,63700.0,63699.0,2.59728268]
[1724445616644,0.15702421,63700.0,63699.0,2.28330668]
[1724445618302,0.15702421,63700.0,63699.0,2.59728268]
[1724445621791,0.15702421,63700.0,63699.0,2.62622128]
[1724445621792,0.06064093,63700.0,63699.0,2.62622128]
[1724445622017,0.06064093,63700.0,63699.0,2.66015699]
[1724445622219,0.04737572,63700.0,63699.0,2.76015699]
[1724445622422,0.02277144,63700.0,63699.0,2.76015699]
[1724445625730,0.04737938,63700.0,63699.0,2.76015699]
[1724445626174,0.02277144,63700.0,63699.0,2.76015699]
[1724445630557,0.04737938,63700.0,63699.0,2.76015699]
[1724445631219,0.02277144,63700.0,63699.0,2.76015699]
[1724445632164,0.02277144,63700.0,63699.0,2.90121956]
[1724445632541,0.02277144,63700.0,63699.0,2.76015699]
[1724445634473,0.02277144,63700.0,63699.0,2.76016109]
[1724445634474,0.04737942,63700.0,63699.0,2.76016109]
[1724445636085,0.02277144,63700.0,63699.0,2.76016109]
[1724445636533,0.02277144,63700.0,63699.0,3.23112109]
[1724445636791,0.009086,63709.0,63699.0,3.23112109]
[1724445636792,0.009086,63709.0,63708.0,0.0654]
[1724445636999,0.000826,63712.0,63711.0,0.475875]
[1724445637201,0.000826,63712.0,63711.0,2.34900609]
[1724445637407,0.000826,63712.0,63711.0,3.14094563]
[1724445637613,0.000826,63712.0,63711.0,2.99984009]
[1724445637817,0.000826,63727.0,63716.0,1.731406]
[1724445638027,0.000826,63727.0,63718.0,0.621024]
[1724445638232,0.000826,63727.0,63718.0,2.30707428]
[1724445638428,0.000826,63727.0,63718.0,2.64395728]
[1724445638649,0.000826,63727.0,63718.0,4.77172328]
[1724445639465,0.000826,63727.0,63718.0,4.77169695]
[1724445640197,0.000826,63727.0,63718.0,4.78569695]
[1724445641470,0.000826,63727.0,63718.0,4.75176124]
[1724445641951,0.000826,63727.0,63718.0,4.86398892]
[1724445642251,0.000826,63727.0,63718.0,4.74676124]
[1724445642472,0.078926,63719.0,63718.0,2.27238109]
[1724445642683,0.142726,63719.0,63718.0,2.06129598]
[1724445643679,0.142726,63719.0,63718.0,2.04729598]
[1724445644092,0.142726,63719.0,63718.0,2.06129598]
[1724445644549,0.142726,63719.0,63718.0,2.04729598]
[1724445644900,0.142726,63719.0,63718.0,2.06129598]
[1724445645930,0.02543099,63719.0,63718.0,2.37517898]
[1724445646134,0.02543099,63719.0,63718.0,2.08429598]
[1724445646573,0.02543099,63719.0,63718.0,2.39817898]
[1724445646773,0.02543099,63719.0,63718.0,2.38417898]
[1724445646932,0.02543099,63719.0,63718.0,2.39817898]
[1724445647343,0.02543099,63719.0,63718.0,2.38417898]
[1724445647562,0.02543099,63719.0,63718.0,2.39817898]
[1724445648005,0.02543099,63719.0,63718.0,2.38417898]
[1724445648141,0.02543099,63719.0,63718.0,2.39817898]
[1724445648565,0.02543099,63719.0,63718.0,2.38417898]
[1724445650025,0.02543099,63719.0,63718.0,2.39817898]
[1724445652163,0.02543099,63719.0,63718.0,2.39878398]
[1724445653203,0.02543099,63719.0,63718.0,2.44567531]
[1724445653406,0.02543099,63719.0,63718.0,2.39960898]
[1724445657352,0.16843099,63719.0,63718.0,2.06272598]
[1724445658182,0.16843099,63719.0,63718.0,2.04872598]
[1724445659578,0.16843099,63719.0,63718.0,2.06272598]
[1724445660154,0.16843099,63719.0,63718.0,2.04872598]
[1724445660425,0.16843099,63719.0,63718.0,2.06272598]
[1724445660645,0.10533099,63719.0,63718.0,2.06272598]
[1724445661102,0.02543099,63719.0,63718.0,2.06272598]
[1724445662224,0.02543099,63719.0,63718.0,2.37660898]
[1724445662462,0.02543099,63719.0,63718.0,2.06272598]
[1724445664063,0.16953099,63719.0,63718.0,1.898723]
[1724445665308,0.17253099,63719.0,63718.0,1.58484]
[1724445665542,0.17253099,63719.0,63718.0,0.48625]
[1724445665543,0.17453099,63719.0,63718.0,0.48625]
[1724445665776,0.43146999,63719.0,63718.0,0.48625]
[1724445666009,0.74534799,63719.0,63718.0,0.01543]
[1724445666235,0.74534799,63719.0,63718.0,0.00143]
[1724445666236,0.43146999,63719.0,63718.0,0.00143]
[1724445666473,0.43146999,63719.0,63707.0,0.4758]
[1724445666474,0.0851,63707.0,63706.0,0.156971]
[1724445666734,0.1085,63693.0,63692.0,0.4758]
[1724445666988,0.1085,63693.0,63692.0,0.471016]
[1724445666989,0.005,63693.0,63692.0,0.471016]
[1724445667221,0.02961924,63693.0,63692.0,0.471016]
[1724445667470,0.23491924,63693.0,63692.0,0.471016]
[1724445669640,0.23491924,63693.0,63692.0,0.475016]
[1724445669956,0.23491924,63693.0,63692.0,0.471016]
[1724445670390,0.23491924,63693.0,63692.0,0.475016]
[1724445670780,0.23491924,63693.0,63692.0,0.789027]
[1724445675258,0.23491924,63693.0,63692.0,0.004]
[1724445675460,0.39892222,63693.0,63692.0,0.004]
[1724445676508,0.39892222,63693.0,63692.0,0.000825]
[1724445676847,0.39992222,63693.0,63692.0,0.15783]
[1724445677069,0.39992222,63693.0,63692.0,0.000825]
[1724445677507,0.39992222,63693.0,63692.0,0.15783]
[1724445677715,0.39892222,63693.0,63692.0,0.15783]
[1724445678612,0.39892222,63693.0,63692.0,0.000825]
[1724445678991,0.39892222,63693.0,63692.0,0.15783]
[1724445679199,0.39992222,63693.0,63692.0,0.15783]
[1724445679621,0.39992222,63693.0,63692.0,0.000825]
[1724445680191,0.39992222,63693.0,63692.0,0.15783]
[1724445681314,0.39992222,63693.0,63692.0,0.000825]
[1724445681527,0.47214906,63693.0,63692.0,0.000825]
[1724445681740,1.18493722,63693.0,63692.0,0.000825]
[1724445681941,0.87093122,63693.0,63692.0,0.000825]
[1724445682157,0.315129,63668.0,63655.0,0.86942154]
[1724445682358,0.315129,63668.0,63658.0,0.314176]
[1724445682359,0.50096719,63668.0,63658.0,0.314176]
[1724445682557,0.50096719,63668.0,63654.0,0.00825]
[1724445682559,0.0598,63655.0,63654.0,0.00825]
[1724445682776,0.0638,63655.0,63654.0,0.00825]
[1724445683217,0.12860002,63655.0,63654.0,0.00825]
[1724445683646,0.12860002,63655.0,63654.0,0.176349]
[1724445683891,0.1286,63655.0,63654.0,0.176349]
[1724445684094,0.15223415,63655.0,63654.0,0.479547]
[1724445685076,0.16047838,63655.0,63654.0,0.479547]
[1724445685812,0.16047838,63655.0,63654.0,0.793745]
[1724445686354,0.16047838,63655.0,63654.0,0.481547]
[1724445687975,0.17652622,63655.0,63654.0,0.481547]
[1724445689352,0.17652622,63655.0,63654.0,0.795745]
[1724445690222,0.17652622,63655.0,63654.0,0.793745]
[1724445690629,0.17652622,63655.0,63654.0,0.797745]
[1724445691681,0.16047838,63655.0,63654.0,0.797745]
[1724445692860,0.09667838,63655.0,63654.0,0.797745]
[1724445694552,0.09667838,63655.0,63654.0,1.111943]
[1724445694816,0.02963415,63655.0,63654.0,1.111943]
[1724445694976,0.02563415,63655.0,63654.0,1.111943]
[1724445695211,0.02563415,63655.0,63654.0,1.505841]
[1724445695212,0.02463415,63655.0,63654.0,1.505841]
[1724445695360,0.02563415,63655.0,63654.0,1.505841]
[1724445696498,0.02563415,63655.0,63654.0,1.501841]
[1724445697022,0.02663415,63655.0,63654.0,1.512841]
[1724445697230,0.02563415,63655.0,63654.0,1.501841]
[1724445698580,0.02663415,63655.0,63654.0,1.512841]
[1724445698983,0.02563415,63655.0,63654.0,1.501841]
[1724445699291,0.02663415,63655.0,63654.0,1.515841]
[1724445699949,0.02663415,63655.0,63654.0,1.436141]
[1724445700177,0.03063415,63655.0,63654.0,1.436141]
[1724445701747,0.02663415,63655.0,63654.0,1.436141]
[1724445701943,0.03063415,63655.0,63654.0,1.436141]
[1724445702583,0.11023415,63655.0,63654.0,0.807745]
[1724445703415,0.11023415,63655.0,63654.0,0.799495]
[1724445703611,0.29165054,63655.0,63654.0,0.014]
[1724445703825,0.43133313,63655.0,63654.0,0.014]
[1724445704239,0.53133313,63655.0,63654.0,0.014]
[1724445704451,0.37423713,63655.0,63654.0,0.014]
[1724445704567,0.53133313,63655.0,63654.0,0.014]
[1724445704935,0.004,63651.0,63650.0,1.3]
[1724445705511,0.005,63651.0,63650.0,1.457109]
[1724445705720,0.005,63651.0,63650.0,1.771327]
[1724445706362,0.005,63651.0,63650.0,1.457109]
[1724445706363,0.0846,63651.0,63650.0,1.457109]
[1724445706499,0.24960298,63651.0,63650.0,1.470109]
[1724445706836,0.24960298,63651.0,63650.0,1.313]
[1724445707335,0.24960298,63651.0,63650.0,1.470109]
[1724445707946,0.24860298,63651.0,63650.0,1.457109]
[1724445708489,0.24960298,63651.0,63650.0,1.468109]
[1724445710232,0.24960298,63651.0,63650.0,1.463109]
[1724445711280,0.002,63651.0,63650.0,2.405763]
[1724445711480,0.002,63651.0,63650.0,2.484663]
[1724445711890,0.002,63651.0,63650.0,2.798881]
[1724445713101,0.002,63651.0,63650.0,2.799707]
[1724445713302,0.006,63651.0,63650.0,2.485489]
[1724445714124,0.006,63651.0,63650.0,2.406589]
[1724445714548,0.006,63651.0,63650.0,2.396589]
[1724445716965,0.0864,63651.0,63650.0,1.768153]
[1724445718175,0.0864,63651.0,63650.0,2.082371]
[1724445718387,0.006,63651.0,63650.0,2.082371]
[1724445718590,0.002,63651.0,63650.0,2.147571]
[1724445718805,0.006,63651.0,63650.0,2.082371]
[1724445719642,0.006,63651.0,63650.0,2.396589]
[1724445719902,0.006,63651.0,63650.0,2.082371]
[1724445721037,0.002,63651.0,63650.0,2.475389]
[1724445722139,0.002,63651.0,63650.0,2.396589]
[1724445722975,0.002,63651.0,63650.0,2.710807]
[1724445723178,0.002,63651.0,63650.0,2.458589]
[1724445725143,0.001,63651.0,63650.0,2.458589]
[1724445725385,0.001,63651.0,63650.0,2.541389]
[1724445725759,0.001,63651.0,63650.0,3.01960998]
[1724445726475,0.02554276,63655.0,63654.0,1.558691]
[1724445727619,0.02279496,63655.0,63654.0,1.558691]
[1724445729899,0.02279496,63655.0,63654.0,1.572691]
[1724445734245,0.02379496,63655.0,63654.0,1.572691]
[1724445735104,0.02279496,63655.0,63654.0,1.572691]
[1724445737378,0.02279496,63655.0,63654.0,0.799495]
[1724445737379,0.02779496,63655.0,63654.0,0.799495]
[1724445737604,0.02779496,63655.0,63654.0,0.485297]
[1724445737836,0.10519496,63655.0,63654.0,0.485297]
[1724445738491,0.10519496,63655.0,63654.0,0.799495]
[1724445738700,0.02379496,63655.0,63654.0,0.799495]
[1724445738919,0.02379496,63655.0,63654.0,1.113693]
[1724445739153,0.02279496,63655.0,63654.0,1.177593]
[1724445739562,0.02279496,63655.0,63654.0,1.178419]
[1724445740366,0.02379496,63655.0,63654.0,1.178419]
[1724445740726,0.02579496,63655.0,63654.0,1.178419]
[1724445744065,0.02279496,63655.0,63654.0,1.492617]
[1724445744271,0.02279496,63655.0,63654.0,1.178419]
[1724445745713,0.02279496,63655.0,63654.0,1.492617]
[1724445747588,0.02279496,63655.0,63654.0,1.178419]
[1724445748729,0.02279496,63655.0,63654.0,1.492617]
[1724445749171,0.02279496,63655.0,63654.0,1.178419]
[1724445749377,0.02279496,63655.0,63654.0,1.492617]
[1724445749623,0.02279496,63655.0,63654.0,1.178419]
[1724445750534,0.02279496,63655.0,63654.0,1.492617]